fUSD/lending_fUSD_20250206
["ID","MTS","AMOUNT","RATE_DAILY","PERIOD"]
[351960148,1738861864203,-507.71,0.0001808,2]
[351960149,1738861864213,-570.24,0.0001808,2]
[351960150,1738861864223,-500.0,0.0001808,2]
[351960151,1738861864233,-829.91,0.0001808,2]
[351960152,1738861864243,-500.0,0.0001808,2]
[351960153,1738861864252,-501.42,0.0001808,2]
[351960154,1738861864262,-1418.09,0.0001808,2]
[351960155,1738861864276,-699.42,0.0001808,2]
[351960156,1738861864287,-1474.87,0.0001808,2]
[351960157,1738861864297,-500.0,0.0001808,2]
[351960158,1738861864307,-953.52,0.0001808,2]
[351960159,1738861864318,-500.0,0.0001808,2]
[351960160,1738861864327,-500.0,0.0001808,2]
[351960161,1738861864337,-902.61,0.0001808,2]
[351960162,1738861864349,-500.0,0.0001808,2]
[351960163,1738861864360,-1661.17,0.0001808,2]
[351960164,1738861864370,-1847.77,0.0001808,2]
[351960165,1738861864380,-1733.71,0.0001808,2]
[351960166,1738861864393,-625.07,0.0001808,2]
[351960167,1738861864404,-667.58,0.0001808,2]
[351960168,1738861864414,-1416.66,0.0001808,2]
[351960169,1738861864424,-500.0,0.0001808,2]
[351960170,1738861864434,-500.0,0.0001808,2]
[351960171,1738861864444,-1420.72,0.0001808,2]
[351960172,1738861864454,-1568.96,0.0001808,2]
[351960173,1738861864464,-672.97,0.0001808,2]
[351960174,1738861864473,-843.46,0.0001808,2]
[351960175,1738861864483,-1370.61,0.0001808,2]
[351960176,1738861864493,-500.0,0.0001808,2]
[351960177,1738861864503,-753.37,0.0001808,2]
[351960178,1738861864513,-1322.14,0.0001808,2]
[351960179,1738861864522,-2840.59,0.0001808,2]
[351960180,1738861864532,-500.0,0.0001808,2]
[351960181,1738861864542,-521.51,0.0001808,2]
[351960182,1738861864551,-500.0,0.0001808,2]
[351960183,1738861864560,-3947.98,0.0001808,2]
[351960184,1738861864569,-1271.81,0.0001808,2]
[351960185,1738861864578,-708.72,0.0001808,2]
[351960186,1738861864589,-791.7,0.0001808,2]
[351960187,1738861864600,-500.0,0.0001808,2]
[351960188,1738861864610,-1069.89,0.0001808,2]
[351960189,1738861864621,-1042.41,0.0001808,2]
[351960190,1738861864630,-957.73,0.0001808,2]
[351960191,1738861864643,-1571.35,0.0001808,2]
[351960192,1738861864653,-1606.61,0.0001808,2]
[351960193,1738861864663,-519.25,0.0001808,2]
[351960194,1738861864673,-1542.73,0.0001808,2]
[351960195,1738861864683,-692.64,0.0001808,2]
[351960196,1738861864694,-657.02,0.0001808,2]
[351960197,1738861864704,-584.58,0.0001808,2]
[351960198,1738861864714,-1586.74,0.0001808,2]
[351960199,1738861864725,-578.78,0.0001808,2]
[351960200,1738861864735,-1730.87,0.0001808,2]
[351960201,1738861864747,-500.0,0.0001808,2]
[351960202,1738861864759,-681.25,0.0001808,2]
[351960203,1738861864769,-500.0,0.0001808,2]
[351960204,1738861864781,-682.56,0.0001808,2]
[351960205,1738861864840,-500.0,0.0001808,2]
[351960206,1738861864852,-1123.68,0.0001808,2]
[351960207,1738861864866,-500.0,0.0001808,2]
[351960208,1738861864876,-500.0,0.0001808,2]
[351960209,1738861864889,-839.75,0.0001808,2]
[351960210,1738861864898,-1377.35,0.0001808,2]
[351960211,1738861864908,-1194.33,0.0001808,2]
[351960212,1738861864918,-742.25,0.0001808,2]
[351960213,1738861864927,-528.18,0.0001808,2]
[351960214,1738861864937,-2239.71,0.0001808,2]
[351960215,1738861864946,-729.85,0.0001808,2]
[351960216,1738861864956,-500.0,0.0001808,2]
[351960217,1738861864965,-1212.61,0.0001808,2]
[351960218,1738861864975,-500.0,0.0001808,2]
[351960219,1738861864984,-514.18,0.0001808,2]
[351960220,1738861864994,-689.8,0.0001808,2]
[351960221,1738861865003,-533.13,0.0001808,2]
[351960222,1738861865013,-500.0,0.0001808,2]
[351960223,1738861865022,-929.26,0.0001808,2]
[351960224,1738861865031,-738.95,0.0001808,2]
[351960225,1738861865041,-539.89,0.0001808,2]
[351960226,1738861865051,-500.0,0.0001808,2]
[351960227,1738861865060,-654.59,0.0001808,2]
[351960228,1738861865070,-766.1,0.0001808,2]
[351960229,1738861865079,-1727.76,0.0001808,2]
[351960230,1738861865089,-2394.19,0.0001808,2]
[351960231,1738861865099,-500.0,0.0001808,2]
[351960232,1738861865108,-605.86,0.0001808,2]
[351960233,1738861865118,-651.71,0.0001808,2]
[351960234,1738861865128,-500.0,0.0001808,2]
[351960235,1738861865140,-500.0,0.0001808,2]
[351960236,1738861865150,-1000.0,0.0001808,2]
[351960237,1738861865159,-500.0,0.0001808,2]
[351960238,1738861865169,-1210.31,0.0001808,2]
[351960239,1738861865179,-321.43621532,0.0001808,2]
[351960240,1738861865189,-721.6,0.0001808,2]
[351960241,1738861865198,-504.71,0.0001808,2]
[351960242,1738861865208,-500.0,0.0001808,2]
[351960243,1738861865218,-1238.99,0.0001808,2]
[351960244,1738861865227,-862.22,0.0001808,2]
[351960245,1738861865237,-500.0,0.0001808,2]
[351960246,1738861865247,-646.48,0.00018081,2]
[351960247,1738861865256,-882.64,0.00018081,2]
[351960248,1738861865266,-500.0,0.00018081,2]
[351960249,1738861865278,-1322.52,0.00018081,2]
[351960250,1738861865288,-500.0,0.00018081,2]
[351960251,1738861865298,-860.43,0.00018081,2]
[351960252,1738861865308,-618.33,0.00018081,2]
[351960253,1738861865318,-882.18,0.00018081,2]
[351960254,1738861865328,-500.0,0.00018081,2]
[351960255,1738861865338,-1093.09,0.00018081,2]
[351960256,1738861865352,-801.19,0.00018081,2]
[351960257,1738861865362,-735.64,0.00018081,2]
[351960258,1738861865372,-773.55,0.00018081,2]
[351960259,1738861865381,-512.91,0.00018081,2]
[351960260,1738861865397,-550.45,0.00018081,2]
[351960261,1738861865406,-647.51,0.00018081,2]
[351960262,1738861865417,-612.38,0.00018081,2]
[351960263,1738861865427,-500.0,0.00018081,2]
[351960264,1738861865437,-980.57,0.00018081,2]
[351960265,1738861865446,-515.98,0.00018081,2]
[351960266,1738861865456,-795.41,0.00018081,2]
[351960267,1738861865465,-500.0,0.00018081,2]
[351960268,1738861865475,-1166.1,0.00018081,2]
[351960269,1738861865486,-841.63,0.00018081,2]
[351960270,1738861865496,-564.64,0.00018081,2]
[351960271,1738861865506,-842.75,0.00018081,2]
[351960272,1738861865516,-549.06,0.00018081,2]
[351960273,1738861865525,-500.0,0.00018081,2]
[351960274,1738861865535,-838.7,0.00018081,2]
[351960275,1738861865545,-871.1,0.00018081,2]
[351960276,1738861865555,-500.0,0.00018081,2]
[351960277,1738861865564,-549.37,0.00018081,2]
[351960278,1738861865574,-888.81,0.00018081,2]
[351960279,1738861865583,-635.82,0.00018081,2]
[351960280,1738861865594,-500.0,0.00018081,2]
[351960281,1738861865605,-758.24,0.00018081,2]
[351960282,1738861865615,-887.86,0.00018081,2]
[351960283,1738861865625,-751.66,0.00018081,2]
[351960284,1738861865634,-817.88,0.00018081,2]
[351960285,1738861865645,-572.42,0.00018081,2]
[351960286,1738861865655,-500.0,0.00018081,2]
[351960287,1738861865664,-754.86,0.00018081,2]
[351960288,1738861865674,-678.78,0.00018081,2]
[351960289,1738861865684,-661.11,0.00018081,2]
[351960290,1738861865694,-500.0,0.00018081,2]
[351960291,1738861865703,-418.34833592,0.00018081,2]
[351960292,1738861865713,-500.0,0.00018081,2]
[351960293,1738861865723,-500.0,0.00018081,2]
[351960294,1738861865732,-500.0,0.00018081,2]
[351960295,1738861865742,-500.0,0.00018081,2]
[351960296,1738861865752,-500.0,0.00018081,2]
[351960297,1738861865762,-505.27,0.00018081,2]
[351960298,1738861865772,-500.0,0.00018081,2]
[351960299,1738861865781,-500.0,0.00018081,2]
[351960300,1738861865790,-500.0,0.00018081,2]
[351960301,1738861865800,-542.84,0.00018081,2]
[351960302,1738861865809,-500.0,0.00018081,2]
[351960303,1738861865818,-568.48,0.00018081,2]
[351960304,1738861865828,-500.0,0.00018081,2]
[351960305,1738861865837,-810.69,0.00018081,2]
[351960306,1738861865848,-500.0,0.00018081,2]
[351960307,1738861865858,-2000.0,0.00018082,2]
[351960308,1738861865867,-4943.19983026,0.00018163,2]
[351960309,1738861865877,-205.0,0.0001821,2]
[351960310,1738861865889,-677.64,0.00018216,2]
[351960311,1738861865898,-2320.36,0.00018216,2]
[351960312,1738861865908,-1057.3,0.00018216,2]
[351960313,1738861865917,-1390.44,0.00018216,2]
[351960314,1738861865927,-702.27,0.00018216,2]
[351960315,1738861865936,-1330.76,0.00018216,2]
[351960316,1738861865945,-1549.77,0.00018216,2]
[351960317,1738861865955,-1149.66,0.00018216,2]
[351960318,1738861865965,-500.0,0.00018216,2]
[351960319,1738861865975,-1130.88,0.00018216,2]
[351960320,1738861865984,-1058.42,0.00018216,2]
[351960321,1738861865993,-591.92,0.00018216,2]
[351960322,1738861866003,-919.01,0.00018216,2]
[351960323,1738861866012,-1259.14,0.00018216,2]
[351960324,1738861866023,-2902.47,0.00018216,2]
[351960325,1738861866032,-1080.79,0.00018216,2]
[351960326,1738861866042,-1591.11,0.00018216,2]
[351960327,1738861866051,-1302.97,0.00018216,2]
[351960328,1738861866061,-1528.37,0.00018216,2]
[351960329,1738861866071,-1378.0,0.00018216,2]
[351960330,1738861866081,-1928.71,0.00018216,2]
[351960331,1738861866090,-1701.03,0.00018216,2]
[351960332,1738861866100,-1215.91,0.00018216,2]
[351960333,1738861866109,-1505.03,0.00018216,2]
[351960334,1738861866119,-3013.77,0.00018216,2]
[351960335,1738861866129,-936.5,0.00018216,2]
[351960336,1738861866143,-1793.39,0.00018216,2]
[351960337,1738861866153,-1477.06,0.00018216,2]
[351960338,1738861866163,-1577.4,0.00018216,2]
[351960339,1738861866173,-5300.74,0.00018216,2]
[351960340,1738861866183,-1169.73,0.00018216,2]
[351960341,1738861866193,-2574.15,0.00018216,2]
[351960342,1738861866204,-2515.4,0.00018216,2]
[351960343,1738861866214,-2027.32,0.00018216,2]
[351960344,1738861866224,-2110.85,0.00018216,2]
[351960345,1738861866233,-1476.55,0.00018216,2]
[351960346,1738861866243,-1529.46,0.00018216,2]
[351960347,1738861866252,-2849.47,0.00018216,2]
[351960348,1738861866262,-1830.91,0.00018216,2]
[351960349,1738861866274,-3547.39,0.00018216,2]
[351960350,1738861866283,-1971.2,0.00018216,2]
[351960351,1738861866292,-500.0,0.00018216,2]
[351960352,1738861866302,-1234.07,0.00018216,2]
[351960353,1738861866313,-500.0,0.00018216,2]
[351960354,1738861866323,-1544.59,0.00018216,2]
[351960355,1738861866333,-1656.43,0.00018216,2]
[351960356,1738861866344,-1394.51,0.00018216,2]
[351960357,1738861866356,-3743.69,0.00018216,2]
[351960358,1738861866366,-963.12,0.00018216,2]
[351960359,1738861866376,-1700.26,0.00018216,2]
[351960360,1738861866389,-1311.59,0.00018216,2]
[351960361,1738861866400,-1736.78,0.00018216,2]
[351960362,1738861866411,-1017.17,0.00018216,2]
[351960363,1738861866431,-576.03,0.00018217,2]
[351960364,1738861866451,-568.39,0.00018217,2]
[351960365,1738861866460,-500.0,0.00018217,2]
[351960366,1738861866470,-1104.41,0.00018217,2]
[351960367,1738861866479,-1065.42,0.00018217,2]
[351960368,1738861866489,-689.15,0.00018217,2]
[351960369,1738861866499,-500.0,0.00018217,2]
[351960370,1738861866509,-500.0,0.00018217,2]
[351960371,1738861866518,-500.0,0.00018217,2]
[351960372,1738861866528,-500.0,0.00018217,2]
[351960373,1738861866537,-1002.74,0.00018217,2]
[351960374,1738861866546,-692.54,0.00018217,2]
[351960375,1738861866556,-738.1,0.00018217,2]
[351960376,1738861866565,-595.37,0.00018217,2]
[351960377,1738861866574,-500.0,0.00018217,2]
[351960378,1738861866584,-500.0,0.00018217,2]
[351960379,1738861866593,-863.61,0.00018217,2]
[351960380,1738861866603,-645.84,0.00018217,2]
[351960381,1738861866614,-500.0,0.00018217,2]
[351960382,1738861866624,-596.44,0.00018217,2]
[351960383,1738861866634,-800.76,0.00018217,2]
[351960384,1738861866645,-777.26,0.00018217,2]
[351960385,1738861866654,-500.0,0.00018217,2]
[351960386,1738861866664,-500.0,0.00018217,2]
[351960387,1738861866674,-548.07,0.00018217,2]
[351960388,1738861866683,-500.0,0.00018217,2]
[351960389,1738861866693,-500.0,0.00018217,2]
[351960390,1738861866703,-500.0,0.00018217,2]
[351960391,1738861866712,-672.55,0.00018217,2]
[351960392,1738861866722,-500.0,0.00018217,2]
[351960393,1738861866731,-874.6,0.00018217,2]
[351960394,1738861866742,-500.0,0.00018217,2]
[351960395,1738861866752,-642.87,0.00018217,2]
[351960396,1738861866762,-607.11,0.00018217,2]
[351960397,1738861866772,-500.0,0.00018217,2]
[351960398,1738861866782,-500.0,0.00018217,2]
[351960399,1738861866792,-1058.07,0.00018217,2]
[351960400,1738861866801,-2325.74,0.00018217,2]
[351960401,1738861866811,-577.77,0.00018217,2]
[351960402,1738861866821,-500.0,0.00018217,2]
[351960403,1738861866831,-500.0,0.00018217,2]
[351960404,1738861866840,-500.0,0.00018217,2]
[351960405,1738861866850,-500.0,0.00018217,2]
[351960406,1738861866860,-910.94,0.00018217,2]
[351960407,1738861866869,-500.0,0.00018217,2]
[351960408,1738861866879,-285.7424223,0.00018217,2]
[351960409,1738861866891,-589.83,0.00018217,2]
[351960410,1738861866901,-500.0,0.00018217,2]
[351960411,1738861866911,-500.0,0.00018217,2]
[351960412,1738861866921,-500.0,0.00018217,2]
[351960413,1738861866930,-785.95,0.00018217,2]
[351960414,1738861866940,-812.17,0.00018217,2]
[351960415,1738861866950,-500.0,0.00018217,2]
[351960416,1738861866960,-500.0,0.00018217,2]
[351960417,1738861866970,-970.04,0.00018217,2]
[351960418,1738861866979,-550.87,0.00018217,2]
[351960419,1738861866989,-500.0,0.00018217,2]
[351960420,1738861866999,-622.89,0.00018217,2]
[351960421,1738861867009,-500.0,0.00018217,2]
[351960422,1738861867019,-940.72,0.00018217,2]
[351960423,1738861867028,-500.0,0.00018217,2]
[351960424,1738861867037,-527.23,0.00018217,2]
[351960425,1738861867047,-687.44,0.00018217,2]
[351960426,1738861867057,-865.53,0.00018217,2]
[351960427,1738861867067,-646.69,0.00018217,2]
[351960428,1738861867076,-500.0,0.00018217,2]
[351960429,1738861867087,-500.0,0.00018217,2]
[351960430,1738861867096,-1138.12,0.00018217,2]
[351960431,1738861867106,-500.0,0.00018217,2]
[351960432,1738861867116,-1066.17,0.00018217,2]
[351960433,1738861867125,-500.0,0.00018217,2]
[351960434,1738861867137,-500.0,0.00018217,2]
[351960435,1738861867148,-500.0,0.00018217,2]
[351960436,1738861867158,-1133.21,0.00018217,2]
[351960437,1738861867168,-1379.38,0.00018217,2]
[351960438,1738861867178,-1088.33,0.00018217,2]
[351960439,1738861867188,-2580.85,0.00018217,2]
[351960440,1738861867198,-500.0,0.00018217,2]
[351960441,1738861867207,-507.71,0.00018217,2]
[351960442,1738861867217,-570.24,0.00018217,2]
[351960443,1738861867226,-500.0,0.00018217,2]
[351960444,1738861867235,-829.91,0.00018217,2]
[351960445,1738861867245,-500.0,0.00018217,2]
[351960446,1738861867254,-501.42,0.00018217,2]
[351960447,1738861867263,-1418.09,0.00018217,2]
[351960448,1738861867273,-699.42,0.00018217,2]
[351960449,1738861867284,-1474.87,0.00018217,2]
[351960450,1738861867293,-500.0,0.00018217,2]
[351960451,1738861867302,-953.52,0.00018217,2]
[351960452,1738861867311,-500.0,0.00018217,2]
[351960453,1738861867321,-500.0,0.00018217,2]
[351960454,1738861867331,-902.61,0.00018217,2]
[351960455,1738861867340,-500.0,0.00018217,2]
[351960456,1738861867350,-1661.17,0.00018217,2]
[351960457,1738861867360,-1847.77,0.00018217,2]
[351960458,1738861867370,-1733.71,0.00018217,2]
[351960459,1738861867380,-625.07,0.00018217,2]
[351960460,1738861867392,-667.58,0.00018217,2]
[351960461,1738861867402,-1416.66,0.00018217,2]
[351960462,1738861867412,-500.0,0.00018217,2]
[351960463,1738861867422,-500.0,0.00018217,2]
[351960464,1738861867433,-1420.72,0.00018217,2]
[351960465,1738861867443,-1568.96,0.00018217,2]
[351960466,1738861867453,-672.97,0.00018217,2]
[351960467,1738861867463,-843.46,0.00018217,2]
[351960468,1738861867474,-1370.61,0.00018217,2]
[351960469,1738861867485,-500.0,0.00018217,2]
[351960470,1738861867495,-753.37,0.00018217,2]
[351960471,1738861867505,-1322.14,0.00018217,2]
[351960472,1738861867515,-2840.59,0.00018217,2]
[351960473,1738861867525,-500.0,0.00018217,2]
[351960474,1738861867536,-521.51,0.00018217,2]
[351960475,1738861867546,-224.13424167,0.00018217,2]
[351960476,1738861867556,-3947.98,0.00018217,2]
[351960477,1738861867565,-1271.81,0.00018217,2]
[351960478,1738861867576,-708.72,0.00018217,2]
[351960479,1738861867587,-791.7,0.00018217,2]
[351960480,1738861867598,-500.0,0.00018217,2]
[351960481,1738861867609,-1069.89,0.00018217,2]
[351960482,1738861867620,-1042.41,0.00018217,2]
[351960483,1738861867630,-957.73,0.00018217,2]
[351960484,1738861867643,-1571.35,0.00018217,2]
[351960485,1738861867652,-1606.61,0.00018217,2]
[351960486,1738861867662,-519.25,0.00018217,2]
[351960487,1738861867672,-1542.73,0.00018217,2]
[351960488,1738861867682,-692.64,0.00018217,2]
[351960489,1738861867693,-657.02,0.00018217,2]
[351960490,1738861867703,-584.58,0.00018217,2]
[351960491,1738861867713,-1586.74,0.00018217,2]
[351960492,1738861867723,-578.78,0.00018217,2]
[351960493,1738861867734,-1730.87,0.00018217,2]
[351960494,1738861867744,-500.0,0.00018217,2]
[351960495,1738861867754,-681.25,0.00018217,2]
[351960496,1738861867764,-374.7796787,0.00018217,2]
[351960497,1738861867774,-682.56,0.00018217,2]
[351960498,1738861867784,-500.0,0.00018217,2]
[351960499,1738861867794,-1123.68,0.00018217,2]
[351960500,1738861867804,-500.0,0.00018217,2]
[351960501,1738861867814,-234.25803247,0.00018217,2]
[351960502,1738861867824,-839.75,0.00018217,2]
[351960503,1738861867834,-1377.35,0.00018217,2]
[351960504,1738861867844,-1194.33,0.00018217,2]
[351960505,1738861867854,-742.25,0.00018217,2]
[351960506,1738861867864,-528.18,0.00018217,2]
[351960507,1738861867875,-2239.71,0.00018217,2]
[351960508,1738861867884,-729.85,0.00018217,2]
[351960509,1738861867894,-500.0,0.00018217,2]
[351960510,1738861867904,-1212.61,0.00018217,2]
[351960511,1738861867914,-514.18,0.00018217,2]
[351960512,1738861867923,-500.0,0.00018217,2]
[351960513,1738861867933,-689.8,0.00018217,2]
[351960514,1738861867943,-533.13,0.00018217,2]
[351960515,1738861867953,-500.0,0.00018217,2]
[351960516,1738861867963,-929.26,0.00018217,2]
[351960517,1738861867974,-738.95,0.00018217,2]
[351960518,1738861867983,-539.89,0.00018217,2]
[351960519,1738861867993,-500.0,0.00018217,2]
[351960520,1738861868003,-654.59,0.00018217,2]
[351960521,1738861868013,-766.1,0.00018217,2]
[351960522,1738861868022,-1727.76,0.00018217,2]
[351960523,1738861868032,-2394.19,0.00018217,2]
[351960524,1738861868042,-500.0,0.00018217,2]
[351960525,1738861868051,-605.86,0.00018217,2]
[351960526,1738861868061,-651.71,0.00018217,2]
[351960527,1738861868071,-500.0,0.00018217,2]
[351960528,1738861868080,-500.0,0.00018217,2]
[351960529,1738861868090,-1000.0,0.00018217,2]
[351960530,1738861868100,-500.0,0.00018217,2]
[351960531,1738861868111,-1210.31,0.00018217,2]
[351960532,1738861868120,-721.6,0.00018217,2]
[351960533,1738861868130,-504.71,0.00018217,2]
[351960534,1738861868142,-500.0,0.00018217,2]
[351960535,1738861868151,-1238.99,0.00018217,2]
[351960536,1738861868162,-862.22,0.00018217,2]
[351960537,1738861868172,-500.0,0.00018217,2]
[351960538,1738861868182,-646.48,0.00018218,2]
[351960539,1738861868192,-882.64,0.00018218,2]
[351960540,1738861868202,-500.0,0.00018218,2]
[351960541,1738861868213,-1322.52,0.00018218,2]
[351960542,1738861868222,-500.0,0.00018218,2]
[351960543,1738861868231,-860.43,0.00018218,2]
[351960544,1738861868241,-618.33,0.00018218,2]
[351960545,1738861868251,-882.18,0.00018218,2]
[351960546,1738861868263,-500.0,0.00018218,2]
[351960547,1738861868277,-1093.09,0.00018218,2]
[351960548,1738861868287,-801.19,0.00018218,2]
[351960549,1738861868296,-735.64,0.00018218,2]
[351960550,1738861868307,-773.55,0.00018218,2]
[351960551,1738861868318,-512.91,0.00018218,2]
[351960552,1738861868327,-550.45,0.00018218,2]
[351960553,1738861868337,-647.51,0.00018218,2]
[351960554,1738861868348,-612.38,0.00018218,2]
[351960555,1738861868357,-500.0,0.00018218,2]
[351960556,1738861868367,-980.57,0.00018218,2]
[351960557,1738861868377,-515.98,0.00018218,2]
[351960558,1738861868388,-795.41,0.00018218,2]
[351960559,1738861868397,-500.0,0.00018218,2]
[351960560,1738861868408,-1166.1,0.00018218,2]
[351960561,1738861868418,-841.63,0.00018218,2]
[351960562,1738861868428,-564.64,0.00018218,2]
[351960563,1738861868437,-842.75,0.00018218,2]
[351960564,1738861868447,-549.06,0.00018218,2]
[351960565,1738861868457,-500.0,0.00018218,2]
[351960566,1738861868467,-838.7,0.00018218,2]
[351960567,1738861868477,-871.1,0.00018218,2]
[351960568,1738861868487,-500.0,0.00018218,2]
[351960569,1738861868497,-549.37,0.00018218,2]
[351960570,1738861868508,-888.81,0.00018218,2]
[351960571,1738861868518,-635.82,0.00018218,2]
[351960572,1738861868528,-500.0,0.00018218,2]
[351960573,1738861868538,-758.24,0.00018218,2]
[351960574,1738861868547,-887.86,0.00018218,2]
[351960575,1738861868556,-751.66,0.00018218,2]
[351960576,1738861868565,-817.88,0.00018218,2]
[351960577,1738861868574,-572.42,0.00018218,2]
[351960578,1738861868584,-500.0,0.00018218,2]
[351960579,1738861868593,-754.86,0.00018218,2]
[351960580,1738861868604,-678.78,0.00018218,2]
[351960581,1738861868613,-661.11,0.00018218,2]
[351960582,1738861868623,-500.0,0.00018218,2]
[351960583,1738861868632,-500.0,0.00018218,2]
[351960584,1738861868644,-500.0,0.00018218,2]
[351960585,1738861868654,-500.0,0.00018218,2]
[351960586,1738861868664,-500.0,0.00018218,2]
[351960587,1738861868674,-500.0,0.00018218,2]
[351960588,1738861868684,-505.27,0.00018218,2]
[351960589,1738861868694,-500.0,0.00018218,2]
[351960590,1738861868704,-500.0,0.00018218,2]
[351960591,1738861868714,-500.0,0.00018218,2]
[351960592,1738861868723,-542.84,0.00018218,2]
[351960593,1738861868733,-500.0,0.00018218,2]
[351960594,1738861868742,-568.48,0.00018218,2]
[351960595,1738861868752,-500.0,0.00018218,2]
[351960596,1738861868763,-810.69,0.00018218,2]
[351960597,1738861868772,-500.0,0.00018218,2]
[351960598,1738861868782,-167.282,0.00018271,2]
[351960599,1738861868792,-180.302,0.00018271,2]
[351960600,1738861868801,-279.477,0.00018271,2]
[351960601,1738861868811,-150.0,0.00018271,2]
[351960602,1738861868821,-153.578,0.00018271,2]
[351960603,1738861868831,-205.762,0.00018271,2]
[351960604,1738861868841,-201.447,0.00018271,2]
[351960605,1738861868850,-252.791,0.00018271,2]
[351960606,1738861868859,-154.759,0.00018271,2]
[351960607,1738861868869,-2023.0,0.00018271,2]
[351960608,1738861868879,-1272.0,0.00018271,2]
[351960609,1738861868889,-638.0,0.00018271,2]
[351960610,1738861868898,-568.0,0.00018271,2]
[351960611,1738861868908,-1826.0,0.00018271,2]
[351960612,1738861868918,-907.0,0.00018271,2]
[351960613,1738861868928,-783.0,0.00018271,2]
[351960614,1738861868938,-1264.0,0.00018271,2]
[351960615,1738861868948,-2953.0,0.00018271,2]
[351960616,1738861868958,-4023.0,0.00018271,2]
[351960617,1738861868967,-539.0,0.00018271,2]
[351960618,1738861868977,-150.0,0.00018271,2]
[351960619,1738861868987,-3911.0,0.00018271,2]
[351960620,1738861868997,-1108.0,0.00018271,2]
[351960621,1738861869008,-1816.08,0.000183,2]
[351960622,1738861869196,-500.0,0.00018337,2]
[351960623,1738861869205,-677.64,0.00018353,2]
[351960624,1738861869214,-2320.36,0.00018353,2]
[351960625,1738861869224,-1057.3,0.00018353,2]
[351960626,1738861869234,-1390.44,0.00018353,2]
[351960627,1738861869244,-154.628653,0.00018353,2]
[351960628,1738861869254,-702.27,0.00018353,2]
[351960629,1738861869263,-1330.76,0.00018353,2]
[351960630,1738861869275,-1549.77,0.00018353,2]
[351960631,1738861869285,-1149.66,0.00018353,2]
[351960632,1738861869295,-500.0,0.00018353,2]
[351960633,1738861869306,-1130.88,0.00018353,2]
[351960634,1738861869317,-1058.42,0.00018353,2]
[351960635,1738861869327,-591.92,0.00018353,2]
[351960636,1738861869337,-919.01,0.00018353,2]
[351960637,1738861869347,-1259.14,0.00018353,2]
[351960638,1738861869358,-2902.47,0.00018353,2]
[351960639,1738861869369,-1080.79,0.00018353,2]
[351960640,1738861869379,-1591.11,0.00018353,2]
[351960641,1738861869391,-1302.97,0.00018353,2]
[351960642,1738861869403,-1528.37,0.00018353,2]
[351960643,1738861869412,-1378.0,0.00018353,2]
[351960644,1738861869423,-1928.71,0.00018353,2]
[351960645,1738861869433,-1701.03,0.00018353,2]
[351960646,1738861869443,-1215.91,0.00018353,2]
[351960647,1738861869453,-1505.03,0.00018353,2]